[Event "2nd Late Dr Abul K C Chess-ch B 2022"]
[Site "Dhaka"]
[Date "2022.07.04"]
[Round "4.1"]
[White "Ahmed, Feroz"]
[Black "Sabujur, Rahman"]
[Result "1-0"]
[ECO "A13"]
[WhiteElo "1976"]
[BlackElo "1844"]
[Annotator "NA RC"]
[PlyCount "110"]
[EventDate "2022.07.03"]
[EventCountry "BAN"]
[SourceTitle "playchess.com"]
[Source "ChessBase"]
[SourceQuality "1"]
[TimeControl "5400+30"]

1. Nf3 {[%emt 0:02:16]} Nf6 {[%emt 0:01:05]} 2. c4 {[%emt 0:00:36]} e6 {[%emt 0:00:12]} 3. g3 {[%emt 0:02:40]} c6 {[%emt 0:03:01]} 4. Bg2 {[%emt 0:00:38]} d5 {[%emt 0:00:14]} 5. b3 {[%emt 0:00:54]} Be7 {[%emt 0:00:25]} 6. Bb2 {[%emt 0:01:12]} Nbd7 {[%emt 0:00:37]} 7. O-O {[%emt 0:00:11]} Qc7 {[%emt 0:00:11]} 8. Nc3 {[%emt 0:03:39]} O-O {[%emt 0:03:27]} 9. Rc1 {[%emt 0:01:16]} dxc4 {[%emt 0:00:09]} 10. bxc4 {[%emt 0:00:37]} Rd8 {[%emt 0:00:49]} 11. d4 {[%emt 0:04:05]} c5 {[%emt 0:04:32]} 12. d5 {[%emt 0:05:02]} Qb6 {[%emt 0:03:38]} 13. Qc2 {[%emt 0:04:52]} a6 {[%emt 0:00:53]} 14. e4 {[%emt 0:00:24]} e5 {[%emt 0:00:24]} 15. Ne1 {[%emt 0:06:15]} Ng4 {[%emt 0:04:35]} 16. h3 {[%emt 0:00:42]} Nh6 {[%emt 0:00:31]} 17. f4 {[%emt 0:06:01]} Qg6 {[%emt 0:02:15]} 18. Ne2 {[%emt 0:00:47]} f6 {[%emt 0:00:36]} 19. Nf3 {[%emt 0:05:07]} (19. a4 $16) 19... Bd6 {[%emt 0:02:55]} 20. f5 {[%emt 0:04:30]} Qe8 {[%emt 0:04:43]} 21. Rb1 {[%emt 0:01:02]} b5 {[%emt 0:00:54]} 22. Bc1 $14 {[%emt 0:01:48]} b4 {[%emt 0:00:52]} 23. g4 {[%emt 0:00:23]} Nf7 {[%emt 0:00:30]} 24. g5 {[%emt 0:00:51]} Nh8 {[%emt 0:02:01]} 25. Kh1 {[%emt 0:01:29]} Qf7 {[%emt 0:02:16]} 26. Rg1 {[%emt 0:00:27]} Nb6 {[%emt 0:01:32]} 27. gxf6 {[%emt 0:10:42]} gxf6 {[%emt 0:00:23]} 28. Bh6 {[%emt 0:01:12]} Qh5 {[%emt 0:01:04]} 29. Qc1 {[%emt 0:03:21]} Bf8 {[%emt 0:01:09]} 30. Be3 {[%emt 0:03:16]} Qe8 {[%emt 0:01:26]} 31. Nh2 {[%emt 0:01:06]} Nf7 {[%emt 0:04:41]} 32. Ng4 {[%emt 0:03:51]} Nd7 {[%emt 0:01:38]} 33. Qe1 {[%emt 0:01:21]} Kh8 {[%emt 0:00:52]} 34. Qh4 {[%emt 0:00:20]} Qe7 {[%emt 0:00:54]} 35. Ng3 {[%emt 0:01:17]} Nd6 {[%emt 0:02:51]} 36. Bf1 {[%emt 0:07:54]} Bg7 {[%emt 0:04:53]} 37. Bd3 {[%emt 0:02:38]} Rg8 {[%emt 0:00:17]} 38. Nh5 {[%emt 0:00:48]} Bb7 {[%emt 0:00:42]} 39. Bh6 {[%emt 0:02:38]} Bxh6 {[%emt 0:01:12]} 40. Nxh6 {[%emt 0:00:03]} Rg5 {[%emt 0:02:25]} 41. Ng4 {[%emt 0:04:30]} Rf8 {[%emt 0:02:40]} 42. Rg2 {[%emt 0:01:55]} Ne8 {[%emt 0:00:28]} 43. Rbg1 {[%emt 0:00:14]} Rfg8 {[%emt 0:00:21]} 44. Bc2 {[%emt 0:01:57]} Rf8 {[%emt 0:06:36]} 45. Ba4 {[%emt 0:00:49]} Bc8 {[%emt 0:04:57]} 46. Nh6 {[%emt 0:01:42]} a5 {[%emt 0:05:19]} 47. Rxg5 {[%emt 0:00:15]} fxg5 {[%emt 0:00:08]} 48. Rxg5 {[%emt 0:01:02]} Qd6 {[%emt 0:03:55]} 49. Ng4 {[%emt 0:01:15]} Nef6 {[%emt 0:00:29]} 50. Bxd7 {[%emt 0:00:16]} Nxd7 {[%emt 0:01:02]} 51. Ng7 {[%emt 0:01:06]} Rf7 {[%emt 0:08:49]} 52. Ne6 {[%emt 0:00:19]} Nf6 {[%emt 0:00:34]} 53. Nxf6 {[%emt 0:01:02]} Rxf6 {[%emt 0:00:53]} 54. Rg7 {[%emt 0:00:43]} Rf8 {[%emt 0:13:35]} 55. Rg5 Qe7 {[%emt 0:00:30]} 1-0

[Event "2nd Late Dr Abul K C Chess-ch B 2022"]
[Site "Dhaka"]
[Date "2022.07.04"]
[Round "4.2"]
[White "ariful, Amin"]
[Black "Dewan, Riad"]
[Result "1-0"]
[ECO "B00"]
[WhiteElo "1868"]
[BlackElo "1970"]
[Annotator "NA RC"]
[PlyCount "111"]
[EventDate "2022.07.03"]
[EventCountry "BAN"]
[SourceTitle "playchess.com"]
[Source "ChessBase"]
[SourceQuality "1"]
[TimeControl "5400+30"]

1. e4 {[%emt 0:00:30]} b6 {[%emt 0:03:32]} 2. d4 {[%emt 0:02:12]} Bb7 {[%emt 0:00:02]} 3. Nc3 {[%emt 0:00:18]} Nf6 {[%emt 0:01:35]} 4. e5 {[%emt 0:00:43]} Ng8 {[%emt 0:00:52]} 5. Nf3 {[%emt 0:00:10]} e6 {[%emt 0:01:05]} 6. Bd3 {[%emt 0:00:14]} Bb4 {[%emt 0:03:15]} 7. O-O {[%emt 0:00:18]} Ne7 {[%emt 0:00:39]} (7... Be7 $142 8. h3 d5) 8. Ne4 {[%emt 0:02:12]} Nf5 {[%emt 0:00:39]} 9. Bg5 {[%emt 0:04:44]} Be7 {[%emt 0:00:38]} 10. Bxe7 {[%emt 0:01:14]} Qxe7 {[%emt 0:00:16]} 11. Re1 {[%emt 0:00:40]} Qb4 {[%emt 0:03:37]} (11... d5 $14) 12. Neg5 {[%emt 0:04:17]} (12. c4 $18) 12... h6 {[%emt 0:04:51]} 13. Nxf7 Kxf7 {[%emt 0:14:21]} 14. Bxf5 {[%emt 0:09:01]} exf5 {[%emt 0:01:27]} 15. e6+ {[%emt 0:00:18]} dxe6 {[%emt 0:00:08]} 16. Ne5+ {[%emt 0:00:00]} Kg8 {[%emt 0:00:35]} 17. Ng6 {[%emt 0:02:27]} Qd6 {[%emt 0:04:43]} 18. Qe2 {[%emt 0:02:34]} Nd7 {[%emt 0:04:54]} 19. Nxh8 {[%emt 0:00:20]} Kxh8 {[%emt 0:00:23]} (19... Nf8 $19 20. Ng6 Nxg6 21. Qxe6+ Qxe6 22. Rxe6 Nf4) 20. Qxe6 {[%emt 0:00:01]} Qxe6 {[%emt 0:01:03]} 21. Rxe6 {[%emt 0:00:01]} Nf6 {[%emt 0:02:25]} 22. Rae1 {[%emt 0:01:17]} Rd8 {[%emt 0:01:05]} 23. Re7 {[%emt 0:00:04]} Rxd4 {[%emt 0:02:43]} 24. Rxc7 {[%emt 0:00:06]} Bd5 $11 {[%emt 0:00:40]} 25. Rxa7 {[%emt 0:01:06]} Rd2 {[%emt 0:00:15]} 26. Rc7 {[%emt 0:00:11]} Be4 {[%emt 0:02:50]} 27. Rc1 {[%emt 0:00:07]} Nh5 {[%emt 0:02:39]} 28. g3 {[%emt 0:18:57]} Nf6 {[%emt 0:01:23]} 29. Kf1 {[%emt 0:03:08]} Bf3 {[%emt 0:09:27]} 30. Rc3 {[%emt 0:00:40]} Bd5 {[%emt 0:00:17]} 31. Ke1 {[%emt 0:00:30]} Rd4 {[%emt 0:06:19]} 32. f3 {[%emt 0:00:54]} Ra4 {[%emt 0:02:41]} 33. a3 {[%emt 0:00:05]} Kh7 {[%emt 0:01:17]} 34. Rd1 {[%emt 0:00:49]} Ra7 {[%emt 0:00:52]} 35. Rcd3 {[%emt 0:00:10]} Re7+ {[%emt 0:01:09]} 36. Kf2 {[%emt 0:00:09]} Bb7 {[%emt 0:06:24]} 37. Rd6 {[%emt 0:00:13]} Rc7 {[%emt 0:00:31]} 38. c3 {[%emt 0:00:03]} Bc6 {[%emt 0:02:41]} 39. Re6 {[%emt 0:01:28]} b5 {[%emt 0:00:10]} 40. Rdd6 {[%emt 0:01:02]} Be8 {[%emt 0:01:27]} 41. Re5 {[%emt 0:00:26]} Bd7 {[%emt 0:01:16]} 42. Ke3 {[%emt 0:05:02]} Kg8 {[%emt 0:00:20]} 43. Kd4 {[%emt 0:00:55]} Kf7 {[%emt 0:00:06]} 44. Rc5 {[%emt 0:03:44]} Rb7 {[%emt 0:00:18]} 45. Ke3 {[%emt 0:00:43]} Ke7 {[%emt 0:01:17]} 46. Rd2 {[%emt 0:00:25]} Rb6 {[%emt 0:01:09]} 47. Kf2 {[%emt 0:00:43]} Rd6 {[%emt 0:01:16]} 48. Re5+ {[%emt 0:00:14]} Re6 {[%emt 0:00:27]} 49. Rxf5 {[%emt 0:00:17]} Kd8 {[%emt 0:01:20]} 50. Rxb5 {[%emt 0:00:10]} Kc7 {[%emt 0:00:24]} 51. Rb4 {[%emt 0:00:45]} Re7 {[%emt 0:03:10]} 52. Rc4+ {[%emt 0:06:25]} Kb6 {[%emt 0:02:09]} 53. Rd6+ {[%emt 0:00:17]} Kb5 {[%emt 0:00:39]} 54. b3 {[%emt 0:00:46]} Re5 {[%emt 0:00:55]} 55. Rc7 {[%emt 0:01:32]} Re7 {[%emt 0:05:48]} 56. c4+ {[%emt 0:00:22]} 1-0

[Event "2nd Late Dr Abul K C Chess-ch B 2022"]
[Site "Dhaka"]
[Date "2022.07.04"]
[Round "4.3"]
[White "Tutul, Dhar"]
[Black "Salim Mohammed, Salim Al Amri"]
[Result "1-0"]
[ECO "E09"]
[WhiteElo "1945"]
[BlackElo "1917"]
[Annotator "NA RC"]
[PlyCount "89"]
[EventDate "2022.07.03"]
[EventCountry "BAN"]
[SourceTitle "playchess.com"]
[Source "ChessBase"]
[SourceQuality "1"]
[TimeControl "5400+30"]

1. d4 {[%emt 0:00:06]} Nf6 {[%emt 1:31:00]} 2. Nf3 {[%emt 0:00:15]} e6 {[%emt 0:00:00]} 3. c4 {[%emt 0:00:23]} c6 {[%emt 0:00:00]} 4. g3 {[%emt 0:00:11]} d5 {[%emt 0:00:00]} 5. Bg2 {[%emt 0:00:11]} Nbd7 {[%emt 0:00:00]} 6. O-O {[%emt 0:00:21]} Be7 {[%emt 0:00:00]} 7. Qc2 {[%emt 0:00:08]} O-O {[%emt 0:00:00]} 8. Rd1 {[%emt 0:02:21]} Re8 {[%emt 0:00:00]} 9. Nbd2 {[%emt 0:02:33]} Nf8 {[%emt 0:00:00]} 10. e4 {[%emt 0:00:36]} dxe4 {[%emt 0:00:00]} 11. Nxe4 {[%emt 0:00:04]} Nxe4 {[%emt 0:05:00]} 12. Qxe4 {[%emt 0:00:11]} Bf6 {[%emt 0:00:00]} 13. Bf4 {[%emt 0:01:43]} a5 {[%emt 0:00:00]} 14. Be5 {[%emt 0:00:59]} a4 {[%emt 0:00:00]} 15. b4 {[%emt 0:02:43]} axb3 {[%emt 0:00:00]} 16. axb3 {[%emt 0:00:03]} Rxa1 {[%emt 0:00:00]} 17. Rxa1 {[%emt 0:00:01]} Bxe5 {[%emt 0:00:00]} 18. Nxe5 {[%emt 0:03:10]} Nd7 {[%emt 0:00:00]} 19. Nf3 {[%emt 0:01:11]} (19. Nxd7 $16 Qxd7 20. Qe5) 19... Qb6 {[%emt 0:00:00]} 20. Qe3 $16 {[%emt 0:03:07]} h6 {[%emt 0:00:00]} 21. c5 {[%emt 0:01:04]} Qc7 {[%emt 0:00:00]} 22. Nd2 {[%emt 0:03:07]} Nf6 {[%emt 0:00:00]} 23. Nc4 {[%emt 0:00:15]} Rd8 {[%emt 0:00:00]} 24. b4 {[%emt 0:02:32]} Bd7 {[%emt 0:00:00]} 25. Qe5 {[%emt 0:00:56]} Qb8 {[%emt 0:00:00]} 26. Qxb8 {[%emt 0:05:25]} Rxb8 {[%emt 0:00:00]} 27. Ra7 {[%emt 0:00:10]} Kf8 {[%emt 0:00:00]} 28. Nd6 {[%emt 0:00:45]} b6 {[%emt 0:00:00]} 29. b5 {[%emt 0:00:36]} bxc5 {[%emt 0:00:00]} 30. dxc5 {[%emt 0:00:09]} cxb5 {[%emt 0:03:12]} 31. c6 {[%emt 0:00:07]} Bxc6 {[%emt 0:04:10]} 32. Bxc6 {[%emt 0:00:41]} b4 {[%emt 0:00:06]} 33. Rxf7+ {[%emt 1:10:56]} Kg8 34. Rb7 {[%emt 0:00:00]} Rd8 {[%emt 0:02:32]} 35. Ne4 {[%emt 0:00:00]} Rd4 {[%emt 0:01:05]} 36. Nxf6+ {[%emt 0:00:00]} gxf6 {[%emt 0:00:02]} 37. h4 {[%emt 0:00:00]} f5 {[%emt 0:00:32]} 38. f4 {[%emt 0:00:00]} Kf8 {[%emt 0:00:32]} 39. Ba4 {[%emt 0:00:00]} Re4 {[%emt 0:00:55]} 40. Kf2 {[%emt 0:00:00]} Rd4 {[%emt 0:00:44]} 41. Bb3 {[%emt 0:00:00]} Re4 {[%emt 0:00:14]} 42. Rh7 {[%emt 0:00:00]} e5 {[%emt 0:00:31]} 43. Rf7+ {[%emt 0:00:00]} Ke8 {[%emt 0:00:07]} 44. Rxf5 {[%emt 0:00:00]} exf4 {[%emt 0:00:29]} 45. Rxf4 {[%emt 0:00:00]} 1-0

[Event "2nd Late Dr Abul K C Chess-ch B 2022"]
[Site "Dhaka"]
[Date "2022.07.04"]
[Round "4.4"]
[White "Hasan, Sk. Rashedul"]
[Black "Md, Azmaeen Parvez Sayor"]
[Result "1/2-1/2"]
[ECO "B27"]
[WhiteElo "1856"]
[BlackElo "1924"]
[Annotator "NA RC"]
[PlyCount "51"]
[EventDate "2022.07.03"]
[EventCountry "BAN"]
[SourceTitle "playchess.com"]
[Source "ChessBase"]
[SourceQuality "1"]
[TimeControl "5400+30"]

{[%evp 8,51,0,-8,-4,-25,2,0,32767,-42,-42,-45,-37,-27,-37,-57,-49,32767,32767,32767,32767,32767,32767,32767,32767,32767,32767,32767,32767,32767,32767,-170,32767,32767,32767,32767,32767,-158,-201,32767,32767,32767,-306,-301,32767,-293]} 1. e4 {[%emt 0:14:17]} c5 {[%emt 0:00:13]} 2. c3 {[%emt 0:01:33]} g6 {[%emt 0:00:36]} 3. Nf3 {[%emt 0:01:16]} Bg7 {[%emt 0:00:57]} 4. d3 {[%emt 0:00:06]} d5 {[%emt 0:00:52]} 5. Nbd2 {[%emt 0:00:05]} Nc6 {[%emt 0:01:09]} 6. Be2 {[%emt 0:00:05]} e5 {[%emt 0:00:54] has lost popularity (6...Nf6).} 7. O-O {[%emt 0:00:14]} Nge7 {[%emt 0:00:35]} 8. Re1 {[%emt 0:00:16]} O-O {[%emt 0:01:31]} 9. Bf1 {[%emt 0:00:02] [#]} Qc7 $146 {[%emt 0:02:37]} ({Predecessor:} 9... h6 10. a4 Be6 11. b3 b6 12. Ba3 a5 13. g3 g5 14. h4 g4 15. Nh2 h5 {0-1 (30) Haque,R (2080)-Reefat,B (2435) Dhaka 2017}) 10. a3 {[%emt 0:00:38]} a5 {[%emt 0:00:25]} 11. b3 {[%emt 0:00:36]} h6 {[%emt 0:01:28]} 12. Qc2 {[%emt 0:02:34]} Be6 {[%emt 0:02:45]} 13. Bb2 {[%emt 0:00:26]} f5 {[%emt 0:01:38]} 14. g3 {[%emt 0:02:17]} g5 {[%emt 0:04:30]} 15. Bg2 {[%emt 0:01:57]} Rae8 {[%emt 0:03:24]} 16. b4 {[%emt 0:00:57]} c4 {[%emt 0:04:11]} 17. exd5 {[%emt 0:05:55]} cxd3 {[%emt 0:02:31]} 18. Qb3 {[%emt 0:01:21]} Bxd5 {[%emt 0:01:15]} 19. c4 $19 {[%emt 0:00:02]} Bxf3 {[%emt 0:02:09]} 20. Nxf3 {[%emt 0:03:09]} e4 {[%emt 0:04:01]} 21. c5+ {[%emt 0:01:59]} Kh7 {[%emt 0:00:56]} 22. Bxg7 {[%emt 0:00:24]} Kxg7 {[%emt 0:00:16]} 23. Qc3+ {[%emt 0:00:27]} Kh7 {[%emt 0:00:55]} 24. Nd2 {[%emt 0:01:21]} axb4 {[%emt 0:00:26]} 25. axb4 {[%emt 0:00:05]} Nd5 {[%emt 0:00:25]} 26. Qc4 {[%emt 0:03:19]} 1/2-1/2

[Event "2nd Late Dr Abul K C Chess-ch B 2022"]
[Site "Dhaka"]
[Date "2022.07.05"]
[Round "5.1"]
[White "Sajidul, Haque"]
[Black "Ahmed, Feroz"]
[Result "1-0"]
[ECO "B28"]
[WhiteElo "1875"]
[BlackElo "1976"]
[Annotator "TA"]
[PlyCount "73"]
[EventDate "2022.07.03"]
[EventCountry "BAN"]
[SourceTitle "playchess.com"]
[Source "ChessBase"]
[SourceQuality "1"]
[TimeControl "5400+30"]

{[%evp 10,73,17,-10,69,29,39,28,77,43,43,-3,6,-19,-29,-33,42,66,70,31,57,65,60,12,18,8,46,18,18,18,41,-4,39,50,48,0,28,-31,-20,-57,-43,-67,-61,-129,-111,-134,-129,-165,-121,-129,-109,-115,-95,-511,-487,-487,-146,-136,-106,-166,-143,-113,-51,14,29991,29992]} 1. e4 {[%emt 0:04:04]} c5 {[%emt 0:01:22]} 2. Nf3 {[%emt 0:01:35]} a6 {[%emt 0:00:09]} 3. d4 {[%emt 0:00:09]} cxd4 {[%emt 0:00:09]} 4. Nxd4 {[%emt 0:00:02]} Nf6 {[%emt 0:00:08]} 5. Nc3 {[%emt 0:00:12]} e5 {[%emt 0:00:18]} 6. Nb3 {[%emt 0:00:06]} b5 {[%emt 0:02:39] B28: Sicilian: 2 Nf3 a6 (O'Kelly Variation).} (6... Bb4 $11) 7. a3 {[%emt 0:00:21] White is more active.} Bb7 {[%emt 0:00:36]} 8. Bd3 {[%emt 0:00:18]} d5 {[%emt 0:05:34] [#]} (8... Be7 $11) 9. Bg5 $146 {[%emt 0:01:25]} ({Predecessor:} 9. exd5 Nxd5 10. Ne4 Nb6 11. O-O N8d7 12. Re1 Be7 13. Qh5 g6 14. Qh6 Bf8 15. Qh3 Bxe4 16. Bxe4 {½-½ (36) Liuviann,C (1756)-Lopez de Anda,E (1598) Penang 2019}) 9... d4 {[%emt 0:04:17]} 10. Ne2 {[%emt 0:01:04]} (10. Nd5 $14) 10... Nbd7 $11 {[%emt 0:00:56]} 11. Ng3 {[%emt 0:03:19]} h6 {[%emt 0:03:08]} 12. Bd2 {[%emt 0:00:44]} Nc5 {[%emt 0:06:30]} (12... h5 $15) 13. Nxc5 $14 {[%emt 0:00:49]} Bxc5 {[%emt 0:00:09]} 14. O-O {[%emt 0:03:16]} (14. f4 $5 {[%cal Rf4e5]}) 14... g6 {[%emt 0:05:56]} 15. f4 {[%emt 0:02:03]} Qe7 {[%emt 0:05:14]} 16. fxe5 {[%emt 0:08:32]} (16. Qf3 $14) 16... Nd7 $1 $11 {[%emt 0:07:28]} (16... Qxe5 17. a4 $16) 17. Bf4 {[%emt 0:02:26]} h5 {[%emt 0:01:19]} 18. Qd2 {[%emt 0:11:06] Threatening Bg5.} (18. b4 $5 {[%cal Rb4c5]} Bb6 19. Qf3 $11) 18... h4 {[%emt 0:01:21]} 19. Ne2 {[%emt 0:58:29]} Rh5 {[%emt 0:09:31]} 20. g4 {[%emt 0:00:00]} (20. e6 $5 Qxe6 21. a4 $11) 20... Rh7 {[%emt 0:00:45]} (20... hxg3 $5 21. Bxg3 (21. Nxg3 Rh7 $11) 21... Nxe5 $11) 21. h3 {[%emt 0:00:00]} Kf8 {[%emt 0:04:07]} 22. Rf2 {[%emt 0:00:00]} (22. Bg5 $14 Qxe5 23. Nf4) 22... Kg8 {[%emt 0:00:39]} 23. Raf1 {[%emt 0:00:00]} (23. a4 $11) 23... Re8 $15 {[%emt 0:02:00]} 24. Qc1 {[%emt 0:00:00]} Nxe5 {[%emt 0:03:40]} 25. Bg5 {[%emt 0:00:00]} Qd7 {[%emt 0:01:22]} 26. Nf4 {[%emt 0:00:00] [#]} (26. b3 $15) 26... Nc4 $1 $17 {[%emt 0:34:13] aiming for ...Ne3.} 27. b4 {[%emt 0:00:00]} Bb6 {[%emt 0:00:00]} 28. Re1 {[%emt 0:00:00][%cal Of4d5]} Ne3 {[%emt 0:00:00] Prevents Nd5.} 29. Ng2 {[%emt 0:00:00][%cal Rg2e3] [#]} Nxg4 {[%emt 0:00:00][%mdl 512]} 30. hxg4 {[%emt 0:00:00]} h3 {[%emt 0:00:00]} ({Resist} 30... Qxg4 31. Qf4 Qg3 32. Bxh4 Qxf4 33. Rxf4 $16) 31. Nh4 $2 {[%emt 0:00:00][%mdl 8192]} (31. Qf4 $17 {is more resistant.}) 31... Qxg4+ $19 {[%emt 0:00:00]} 32. Kh1 {[%emt 0:00:00]} Rxe4 $2 {[%emt 0:00:00]} ({Don't blunder} 32... Rxh4 $2 33. Bxh4 Qxh4 34. Qf4 Qxf4 35. Rxf4 $19) (32... Bc7 $19 {is more deadly.} 33. Nf3 Bg3) 33. Bxe4 $17 {[%emt 0:00:28]} Bxe4+ {[%emt 0:00:00]} 34. Kh2 {[%emt 0:00:15]} (34. Rxe4 $17 Qxe4+ 35. Nf3) 34... Rxh4 {[%emt 0:00:00]} 35. Qf4 {[%emt 0:02:06] [#] Prevents Bc7.} Qg2+ $3 {[%emt 0:01:32][%mdl 512]} 36. Rxg2 $11 {[%emt 0:00:14]} hxg2+ $4 {[%emt 0:00:02][%mdl 8192]} (36... Rxf4 $11 37. Rge2 Rg4 38. Rxe4 Rxg5) 37. Bxh4 {[%emt 0:01:06] Weighted Error Value: White=0.50/Black=0.55} 1-0

[Event "2nd Late Dr Abul K C Chess-ch B 2022"]
[Site "Dhaka"]
[Date "2022.07.05"]
[Round "5.2"]
[White "ariful, Amin"]
[Black "Tutul, Dhar"]
[Result "0-1"]
[ECO "B13"]
[WhiteElo "1868"]
[BlackElo "1945"]
[Annotator "TA"]
[PlyCount "86"]
[EventDate "2022.07.03"]
[EventCountry "BAN"]
[SourceTitle "playchess.com"]
[Source "ChessBase"]
[SourceQuality "1"]
[TimeControl "5400+30"]

{[%evp 13,86,-6,0,-16,0,-2,-7,-5,0,0,0,0,0,-11,-14,-72,-79,-102,-76,-70,-83,-140,-146,-145,-141,-150,-77,-101,-76,-100,-100,-174,-177,-249,-246,-299,-298,-288,-289,-317,-291,-384,-342,-464,-422,-422,-362,-1026,-1026,-964,-914,-878,-274,-274,-259,-247,-238,-336,-325,-336,-336,-387,-266,-495,-397,-543,-508,-526,-517,-1096,-1062,-856,-810,-1788,-1705]} 1. e4 {[%emt 0:00:54]} c6 {[%emt 0:00:19]} 2. Nf3 {[%emt 0:00:06]} d5 {[%emt 0:00:08]} 3. exd5 {[%emt 0:00:06]} cxd5 {[%emt 0:00:05]} 4. d4 {[%emt 0:00:09]} Nf6 {[%emt 0:00:10]} 5. Bb5+ {[%emt 0:00:07]} Bd7 {[%emt 0:00:11]} 6. Bxd7+ {[%emt 0:00:33]} Nbxd7 {[%emt 0:00:13]} 7. O-O {[%emt 0:00:05]} e6 {[%emt 0:00:05]} 8. Re1 {[%emt 0:00:40] B13: Caro-Kann: Exchange Variation and Panov-Botvinnik Attack.} Be7 {[%emt 0:00:07]} 9. c3 {[%emt 0:00:04]} O-O {[%emt 0:00:14]} 10. Bg5 {[%emt 0:00:13] [#] The position is equal.} Rc8 $146 {[%emt 0:01:43]} ({Predecessor:} 10... Qc7 11. Nbd2 Bd6 12. h3 h6 13. Bxf6 Nxf6 14. Rc1 b5 15. a3 Bf4 16. Rb1 Nd7 {1-0 (53) Garrido Egido,M-Barrio Garcia,S Gijon 2000}) 11. Nbd2 {[%emt 0:00:07]} h6 {[%emt 0:00:58]} 12. Bh4 {[%emt 0:00:25]} b5 {[%emt 0:01:52]} 13. Qb3 {[%emt 0:04:33] Inhibits b4.} Qb6 {[%emt 0:00:10]} 14. Ne5 {[%emt 0:00:16]} (14. a3 $11) 14... Nxe5 $17 {[%emt 0:05:51]} 15. Rxe5 {[%emt 0:20:55]} Rfe8 {[%emt 0:02:45]} 16. Bxf6 {[%emt 0:00:43]} Bxf6 {[%emt 0:00:07]} 17. Ree1 {[%emt 0:01:34]} (17. Re3 $142) 17... b4 $1 {[%emt 0:02:22]} 18. Rac1 {[%emt 0:09:51]} bxc3 {[%emt 0:00:45]} 19. bxc3 {[%emt 0:00:57]} Qa6 {[%emt 0:07:38]} ({Not} 19... Bg5 20. Qc2 $17) (19... Re7 $142 20. Nf3 Rec7) 20. Nf3 {[%emt 0:06:53]} Rc7 {[%emt 0:04:00]} 21. g3 {[%emt 0:08:37]} Rec8 {[%emt 0:00:28]} 22. a4 {[%emt 0:12:19]} (22. Kg2 $17) 22... Rc4 $19 {[%emt 0:01:45]} 23. a5 {[%emt 0:02:18]} (23. Kg2 $142) 23... Qxa5 {[%emt 0:00:28][%cal Rc4c3]} 24. Re3 {[%emt 0:01:59] [#]} Bxd4 $1 {[%emt 0:08:06][%mdl 512]} 25. Nxd4 {[%emt 0:03:19]} Rxd4 {[%emt 0:00:12][%mdl 64] Pin} 26. Re2 {[%emt 0:00:07]} Ra4 {[%emt 0:01:44]} 27. Qb7 {[%emt 0:00:57]} Rac4 {[%emt 0:00:20]} 28. Qb3 {[%emt 0:00:23]} Rxc3 {[%emt 0:01:12]} 29. Rxc3 {[%emt 0:25:50]} Qxc3 {[%emt 1:01:02][%mdl 4096] Endgame KQR-KQR} 30. Qb7 {[%emt 0:00:00]} (30. Qxc3 Rxc3 31. Ra2) 30... d4 {[%emt 0:00:00] [#] Hoping for ...d3.} 31. Ra2 {[%emt 0:00:00]} a5 {[%emt 0:00:00]} 32. Rxa5 {[%emt 0:00:00]} Qc1+ $2 {[%emt 0:00:00]} (32... Qe1+ 33. Kg2 Rc1 34. Ra8+ Kh7) 33. Kg2 {[%emt 0:00:00]} Qc6+ {[%emt 0:00:00]} 34. Qxc6 {[%emt 0:00:00]} Rxc6 {[%emt 0:00:00] KR-KR} 35. Ra8+ {[%emt 0:00:00]} (35. h4 {was necessary.}) 35... Kh7 {[%emt 0:03:00]} 36. Rd8 e5 {[%emt 0:00:00]} 37. h4 {[%emt 0:00:00]} h5 {[%emt 0:00:00]} 38. Kf3 $2 {[%emt 0:00:00]} (38. Rd5 {is the only way for White.} f6 39. f4 Rc2+ 40. Kf1) 38... Kg6 {[%emt 0:00:00] aiming for ...Kf5.} 39. Ke4 {[%emt 0:05:00]} f6 {[%emt 0:00:00][%cal Bf7f6,Bf6e5][%mdl 32] Black is clearly winning.} 40. f4 {[%emt 0:00:00]} Rc1 {[%emt 0:00:00]} 41. fxe5 {[%emt 0:00:00]} (41. f5+ $142 Kh7 42. Kf3) 41... Re1+ {[%emt 0:00:00]} 42. Kf3 {[%emt 0:00:00]} fxe5 {[%emt 0:00:00]} 43. g4 {[%emt 0:00:00]} Re3+ {[%emt 0:00:00] Weighted Error Value: White=0.71/Black=0.25 (precise)} 0-1

[Event "2nd Late Dr Abul K C Chess-ch B 2022"]
[Site "Dhaka"]
[Date "2022.07.05"]
[Round "5.3"]
[White "Sarwar, Hossain Ullash"]
[Black "Abdullah Al, Raison"]
[Result "0-1"]
[ECO "D35"]
[WhiteElo "1845"]
[BlackElo "1888"]
[Annotator "NA RC COMBH"]
[PlyCount "37"]
[EventDate "2022.07.03"]
[EventCountry "BAN"]
[SourceTitle "playchess.com"]
[Source "ChessBase"]
[SourceQuality "1"]
[TimeControl "5400+30"]

1. d4 {[%emt 0:00:06]} Nf6 {[%emt 1:31:00]} 2. c4 {[%emt 0:00:02]} e6 {[%emt 0:00:00]} 3. Bg5 {[%emt 0:00:40]} d5 {[%emt 0:00:00]} 4. cxd5 {[%emt 0:00:17]} exd5 {[%emt 0:00:00]} 5. Nc3 {[%emt 0:00:08]} Bb4 {[%emt 0:00:00]} 6. e3 {[%emt 0:01:14]} h6 {[%emt 0:00:00]} 7. Bh4 {[%emt 0:00:32]} O-O {[%emt 0:00:00]} 8. Bd3 {[%emt 0:00:21]} c5 {[%emt 0:00:00]} 9. dxc5 {[%emt 0:02:51]} Nbd7 {[%emt 0:00:00]} 10. Nge2 {[%emt 0:01:12]} Nxc5 {[%emt 0:00:00]} 11. O-O {[%emt 0:00:43]} Nxd3 {[%emt 0:00:00]} 12. Qxd3 {[%emt 0:00:04]} Be7 {[%emt 0:00:00]} 13. Rfd1 {[%emt 0:00:54]} Qb6 {[%emt 0:00:00]} 14. Qb5 {[%emt 0:03:00]} Qxb5 {[%emt 0:00:00]} 15. Nxb5 {[%emt 0:00:33]} Be6 {[%emt 0:00:00]} 16. Rac1 {[%emt 0:01:15]} Rac8 {[%emt 0:00:00]} 17. Nxa7 {[%emt 0:09:11]} Rc3 {[%emt 0:08:00]} 18. Rc2 Rxc2 {[%emt 0:00:00]} 19. Rc1 {[%emt 0:00:40]} 0-1

[Event "2nd Late Dr Abul K C Chess-ch B 2022"]
[Site "Dhaka"]
[Date "2022.07.05"]
[Round "5.4"]
[White "Md, Azmaeen Parvez Sayor"]
[Black "Rahman, Ataur"]
[Result "1-0"]
[ECO "C64"]
[WhiteElo "1924"]
[BlackElo "1996"]
[Annotator "TA"]
[PlyCount "21"]
[EventDate "2022.07.03"]
[EventCountry "BAN"]
[SourceTitle "playchess.com"]
[Source "ChessBase"]
[SourceQuality "1"]
[TimeControl "5400+30"]

{[%evp 9,21,36,253,41,40,44,46,24,39,28,37,21,14,-21]} 1. e4 {[%emt 0:00:03]} Nc6 {[%emt 1:31:00]} 2. Nf3 e5 {[%emt 0:00:00]} 3. Bb5 {[%emt 0:00:16]} Bc5 {[%emt 0:00:00]} 4. O-O {[%emt 0:00:21]} d6 {[%emt 0:00:00]} 5. c3 {[%emt 0:01:19]} Bg4 $2 {[%emt 0:00:00] [#]} (5... a6 $14 6. Bxc6+ bxc6) 6. h3 $2 {[%emt 0:00:37] C64: Ruy Lopez: Classical Defence (3...Bc5) except 4 0-0 Nf6.} (6. d4 $18) 6... Bxf3 $14 {[%emt 0:00:00]} 7. Qxf3 {[%emt 0:00:10]} Qf6 {[%emt 0:00:00]} 8. Qxf6 {[%emt 0:02:42]} Nxf6 {[%emt 0:00:00] [#]} 9. Re1 $146 {[%emt 0:00:26]} ({Predecessor:} 9. d3 O-O 10. Bg5 Nd7 11. Nd2 a6 12. Bxc6 bxc6 13. Nb3 d5 14. Nxc5 Nxc5 15. Be7 {1-0 (46) Newrkla,K-Mayer,M Illmitz 2004}) 9... O-O {[%emt 0:00:00]} 10. b4 {[%emt 0:02:40]} Bb6 {[%emt 0:00:00]} 11. Na3 {[%emt 0:00:50][%mdl 32768] White got outplayed after the opening.  Weighted Error Value: White=0.89/Black=0.71. Loss on time!?} 1-0